Cogmind - Beta 14 @@@ ROGUE MODE // 2024.08.28 @ 19:39:55 Player: Daffa0360 Result: Destroyed by 87-SIX(R) with Subdweller Laser Performance ------------- Evolutions (0) 0 Regions Visited (2) 400 Robots Destroyed (17) 85 Value Destroyed (474) 474 Prototype IDs (0) 0 Alien Tech Used (0) 0 Bonus (0) 0 TOTAL SCORE: 959 Bonus ------- None Cogmind --------- Core Integrity 0/250 Matter 300/300 Energy 100/100 System Corruption 0% Temperature Cool (6) Movement Treading (240) Ox1 Location -10/Subcaves Parts ------- > --- POWER (1) -------- (None) > --- PROPULSION (2) --- Light Treads Aluminum Leg > --- UTILITY (2) ------ Large Storage Unit Makeshift Light Armor Plating > --- WEAPON (2) ------- Subdweller Laser Makeshift Sword > --- INVENTORY (15) --- Aluminum Leg Compact Wheel Subdweller Monowheel Subdweller Monowheel Subdweller Monowheel Improved Terrain Scanner Targeting Computer Makeshift Light Armor Plating Shrapnel Trap Scrap Shield Fragment (49) Scrap Shield Fragment (47) Scrap Shield Fragment (46) Peak State ------------ > --- POWER ------------ (None) > --- PROPULSION ------- Aluminum Leg Compact Wheel > --- UTILITY ---------- Large Storage Unit Makeshift Light Armor Plating > --- WEAPON ----------- Subdweller Laser Makeshift Sword > --- INVENTORY -------- Light Treads Aluminum Leg Subdweller Monowheel Subdweller Monowheel Sensor Array Improved Terrain Scanner Targeting Computer Makeshift Light Armor Plating Shrapnel Trap Scrap Shield Fragment Scrap Shield Fragment Scrap Shield Fragment [Rating: 15] Favorites ----------- Power Ion Engine Engine Ion Engine Propulsion Compact Wheel Treads Light Treads Leg Aluminum Leg Wheel Compact Wheel Utility Large Storage Unit Device Sensor Array Storage Large Storage Unit Protection Makeshift Light Armor Plating Weapon Light Assault Rifle Energy Gun Subdweller Laser Ballistic Gun Light Assault Rifle Slashing Weapon Makeshift Sword Build | -11 -10 -10 ------- Run | Yrd Mat Sub Slots Evolved . | . . . Power . | . . . Propulsion . | . . . Utility . | . . . Weapon . | . . . Parts Attached 22 | . 2 20 Power . | . . . Engine . | . . . Core . | . . . Reactor . | . . . Propulsion 8 | . 1 7 Treads 1 | . . 1 Leg 1 | . . 1 Wheel 6 | . 1 5 Hover . | . . . Flight . | . . . Utility 9 | . 1 8 Device 4 | . . 4 Storage 1 | . 1 . Processor . | . . . Hackware . | . . . Protection 4 | . . 4 Artifact . | . . . Weapon 5 | . . 5 Energy Gun 1 | . . 1 Energy Cannon . | . . . Ballistic Gun 3 | . . 3 Ballistic Cannon . | . . . Launcher . | . . . Special Weapon . | . . . Impact Weapon . | . . . Slashing Weapon 1 | . . 1 Piercing Weapon . | . . . Special Melee Weapon . | . . . Unidentified Prototypes . | . . . Parts Lost 12 | . 1 11 Power 1 | . . 1 Propulsion 5 | . 1 4 Utility 2 | . . 2 Weapon 4 | . . 4 Highest Loss Streak 7 | . 1 7 To Critical Strikes . | . . . Average Slot Usage (%) 79 | . 83 76 Engine 5 | . 14 . Treads 1 | . . 2 Leg 9 | . 15 4 Wheel 16 | . 10 19 Device 6 | . . 10 Storage 14 | . 14 14 Protection 1 | . . 1 Energy Gun 7 | . . 12 Ballistic Gun 15 | . 28 6 Slashing Weapon 1 | . . 2 Peak Build Rating 15 | 6 7 15 Average Rating 7 | 6 6 9 On Entrance 6 | 6 6 7 Naked Turns . | . . . Heaviest Build 30 | 12 27 30 Greatest Support 36 | 20 20 36 Greatest Overweight (x) 2 | . 1 2 Average Overweight (x) . | . . . Largest Inventory Capacity 15 | 8 15 15 Average Capacity 14 | 8 13 15 Most Carried 14 | 7 11 14 Average Carried 10 | 6 7 12 Final Capacity 15 | 8 15 15 Final Carried 12 | 6 11 12 Class Distribution -------------------- 100% | Mutant Dominant Class ---------------- Mutant | -10/Materials Mutant | -10/Subcaves Resources | -11 -10 -10 ----------- Run | Yrd Mat Sub Matter Collected 534 | 210 83 241 Remotely . | . . . Salvage Created 656 | 88 260 308 Parts 32 | 4 15 13 Haulers Intercepted 1 | . 1 . Recyclers Shooed . | . . . Parts Field Recycled . | . . . Retrieved Matter . | . . . Parts Self-Destructed 5 | . . 5 Prevented . | . . . Kills | -11 -10 -10 ------- Run | Yrd Mat Sub Combat Hostiles Destroyed 14 | . 7 7 Melee 3 | . . 3 Guns 11 | . 7 4 Classes Destroyed 6 | 2 3 1 Tunneler 1 | 1 . . Hauler 1 | . 1 . Recycler 1 | 1 . . Swarmer 3 | . 3 . Grunt 4 | . 4 . Subdweller 7 | . . 7 Best Kill Streak 5 | 2 5 3 Combat Bots Only 5 | . 5 3 Max Kills in Single Turn 1 | 1 1 1 Gunslinging . | . . . Exploded . | . . . Melee 1 | . . 1 Uniques/NPCs Destroyed . | . . . Combat | -11 -10 -10 -------- Run | Yrd Mat Sub Hostile Shots Fired 94 | . 33 61 Missed 20 | . 8 12 Damage Taken 1369 | . 256 1113 Core 250 | . 28 222 Absorbed by Shields . | . . . Core Remaining (%) 100 | 100 . . Volleys Fired 68 | 5 34 29 Largest 2 | 2 2 2 Hottest 40 | 40 40 40 Shots Fired 126 | 10 68 48 Gun 126 | 10 68 48 Cannon . | . . . Launcher . | . . . Special . | . . . Kinetic 126 | 10 68 48 Thermal . | . . . Explosive . | . . . Electromagnetic . | . . . Robot Hit Streak 28 | 3 6 28 Robot Miss Streak 5 | 2 5 1 Penetration Max . | . . . Secondary Targets . | . . . Shots Hit Robots 98 | 6 36 56 Core Hits 36 | 4 18 14 Critical Kills 1 | . 1 . Critical Parts Destroyed . | . . . Critical Strikes 3 | . 1 2 Destroy 3 | . 1 2 Melee Attacks 16 | . . 16 Impact . | . . . Slashing 16 | . . 16 Piercing . | . . . Sneak Attacks 2 | . . 2 Combat Hostiles 2 | . . 2 Follow-up Attacks . | . . . Damage Inflicted 1192 | 46 300 846 Guns 775 | 46 300 429 Cannons . | . . . Explosions . | . . . Melee 417 | . . 417 Ramming . | . . . Kinetic 775 | 46 300 429 Thermal . | . . . Explosive . | . . . Electromagnetic . | . . . Impact . | . . . Slashing 417 | . . 417 Piercing . | . . . Highest Corruption . | . . . Average Corruption . | . . . Corruption Purged . | . . . Corruption Blocked . | . . . Overload Shots . | . . . Overflow Damage . | . . . Projectiles . | . . . Explosions . | . . . Melee . | . . . Knockbacks . | . . . Impact . | . . . Kinetic . | . . . Secondary . | . . . Self-Inflicted Damage . | . . . Shots . | . . . Rammed . | . . . Targets Rammed . | . . . Kicked . | . . . Crushed . | . . . Highest Temperature 12 | . 12 . Average Temperature 8 | . 8 . Received Heat Transfer 324 | . 84 240 Siege Activations . | . . . Robots Corrupted . | . . . Combat Hostiles . | . . . Parts Fried . | . . . Impact Corruptions . | . . . Robots Melted . | . . . Combat Hostiles . | . . . Parts Melted . | . . . Heat Transferred . | . . . Parts Sabotaged . | . . . Parts Stolen . | . . . Parts Stripped . | . . . Power Chain Reactions . | . . . Alert | -11 -10 -10 ------- Run | Yrd Mat Sub Peak Influence 128 | 10 128 . Initial 6 | . 6 . Average 68 | 7 71 . Maximum Alert Level . | . . . Low Security (%) 100 | 100 100 . Level 1 . | . . . Level 2 . | . . . Level 3 . | . . . Level 4 . | . . . Level 5 . | . . . High Security . | . . . Max Security . | . . . Squads Dispatched 1 | . 1 . Investigation . | . . . Extermination . | . . . Reinforcement 1 | . 1 . Assault . | . . . Garrison . | . . . Intercept . | . . . Searches Triggered . | . . . Construction Impeded . | . . . Haulers Reinforced . | . . . Active Scanning Responses . | . . . Cargo Convoy Interrupts . | . . . Stealth | -11 -10 -10 --------- Run | Yrd Mat Sub Distress Signals 1 | . 1 . Communications Jammed . | . . . Distress Signals . | . . . Times Spotted 21 | . 13 8 Peak Tracking Total 3 | . 3 3 Tactical Retreats 1 | . 1 . Traps | -11 -10 -10 ------- Run | Yrd Mat Sub Traps Triggered 2 | . . 2 Indirectly . | . . . Trap Hack Attempts . | . . . Triggered . | . . . Disarmed . | . . . Reprogrammed . | . . . Reused . | . . . Traps Extracted . | . . . Installed 1 | . . 1 Triggered . | . . . Most Traps Carried 2 | . . 2 Machines | -11 -10 -10 ---------- Run | Yrd Mat Sub Machines Disabled . | . . . Max in Single Turn . | . . . Machines Repaired . | . . . Machines Dismantled . | . . . Machines Sabotaged . | . . . Overloaded Fab Kills . | . . . Hacking | -11 -10 -10 --------- Run | Yrd Mat Sub Machines Accessed 3 | . 3 . Terminals 3 | . 3 . Fabricators . | . . . Repair Stations . | . . . Recycling Units . | . . . Scanalyzers . | . . . Garrison Access . | . . . Total Hacks 7 | . 7 . Successful 2 | . 2 . Failed 5 | . 5 . Catastrophic . | . . . Database Lockouts . | . . . Manual . | . . . Terminals 7 | . 7 . Fabricators . | . . . Repair Stations . | . . . Recycling Units . | . . . Scanalyzers . | . . . Garrison Access . | . . . Terminal Hacks 2 | . 2 . Alert Level 1 | . 1 . Locate Traps 1 | . 1 . Fabricator Hacks . | . . . Repair Station Hacks . | . . . Recycling Unit Hacks . | . . . Scanalyzer . | . . . Garrison Access Hacks . | . . . Unauthorized Hacks . | . . . Terminals . | . . . Fabricators . | . . . Repair Stations . | . . . Recycling Units . | . . . Scanalyzers . | . . . Garrison Access . | . . . Data Cores Recovered . | . . . Used . | . . . Hacking Detections 3 | . 3 . Full Trace Events . | . . . Feedback Events . | . . . Feedback Blocked . | . . . Robot Schematics Acquired . | . . . Robots Built . | . . . Authchips . | . . . Time . | . . . Total Robot Build Rating . | . . . Part Schematics Acquired . | . . . Parts Built . | . . . Authchips . | . . . Time . | . . . Total Part Build Rating . | . . . Parts Repaired . | . . . Time . | . . . Parts Recycled . | . . . Recycled Matter . | . . . Retrieved Matter . | . . . Retrieved Components . | . . . Parts Scanalyzed . | . . . Part Schematics Acquired . | . . . Parts Damaged . | . . . Bothacking | -11 -10 -10 ------------ Run | Yrd Mat Sub Used RIF Installer . | . . . Robots Hacked . | . . . Non-combat . | . . . Combat . | . . . Robot Hacks Applied . | . . . Relay Couplers Released . | . . . Fabnet Peak Effective % . | . . . Robots Rewired . | . . . Allies Hacked . | . . . Hacks Repelled . | . . . Allies | -11 -10 -10 -------- Run | Yrd Mat Sub Total Allies . | . . . Largest Group . | . . . Highest-Rated Group . | . . . Highest-Rated Ally . | . . . Total Orders . | . . . Ally Attacks . | . . . Total Damage . | . . . Kills . | . . . Allies Corrupted . | . . . Allies Melted . | . . . Intel | -11 -10 -10 ------- Run | Yrd Mat Sub Robot Analysis Total . | . . . Derelict Logs Recovered . | . . . Drone Launches . | . . . Drone Recoveries . | . . . Exploration | -11 -10 -10 ------------- Run | Yrd Mat Sub Turns Passed 1950 | 42 768 1140 Spaces Moved 1175 | 22 393 760 Core . | . . . Treads 55 | . . 55 Legs 91 | 22 67 2 Wheels 1029 | . 326 703 Hover . | . . . Flight . | . . . Fastest Speed 90 | 120 115 90 Average Speed 115 | 120 122 112 Slowest Speed 260 | 120 190 260 Overloaded Moves . | . . . Propulsion Burnouts . | . . . Robots Hopped . | . . . Cave-ins Triggered . | . . . Exploration Rate (%) 30 | 3 40 48 Regions Visited 2 Branch Regions 1 Pre-discovered Areas . | . . . Known Exits Taken . | . . . Unknown Exits Taken 2 | 1 1 . Scrap Searched 8 | . . 8 Spaces Dug . | . . . Terrain Destroyed . | . . . Melee . | . . . Projectile . | . . . AOE . | . . . Terrain Rammed . | . . . Walls Destroyed . | . . . Machines Disabled . | . . . Actions | -11 -10 -10 --------- Run | Yrd Mat Sub Total 1641 | 30 627 984 Wait 331 | . 191 140 Move 1173 | 21 392 760 Hop . | . . . Pick Up 23 | 2 7 14 Fast Attach . | . . . Attach 16 | . 2 14 Detach 2 | . . 2 Swap 6 | . . 6 Drop 5 | 2 1 2 Fire 68 | 5 34 29 Melee 16 | . . 16 Ram . | . . . Kick . | . . . Crush . | . . . Escape Stasis . | . . . Rewire . | . . . Trap 1 | . . 1 Miscellaneous . | . . . Route ------- -11/Scrapyard -10/Materials -10/Subcaves (discovered 1 exit: [*Mat]) History --------- Turn | Location | Event 1 | -11/Scrapyard | Discovered new exit (range 3) 43 | -11/Scrapyard | Entered Materials 304 | -10/Materials | Build established: Mutant 798 | -10/Materials | Discovered new exit (range 11) 811 | -10/Materials | Entered Subcaves 878 | -10/Subcaves | Disturbed a concealed Subdweller 939 | -10/Subcaves | Core integrity fell below 50% 958 | -10/Subcaves | Lost 7 parts (3n1u3w) 1139 | -10/Subcaves | A swath of the cavern ceiling suddenly collapsed 1512 | -10/Subcaves | Discovered new exit (range 5) 1947 | -10/Subcaves | Core integrity fell below 20% 1951 | -10/Subcaves | Destroyed by 87-SIX(R) with Subdweller Laser Last Messages --------------- 01459_ Triggered Piercing Trap. 01459_ Spikes shoot up from the floor. 01459_ Critical hit (Impale). 01459_ Wheel destroyed. 01512_ EXIT=FOUND 01544_ Acquired Sub. Monowheel. 01635_ Sub. Monowheel shoots sparks and powers down. 01636_ Dropped Broken Sub. Monowheel. 01662_ Acquired 8 matter. 01738_ 5R-9Y4(R) destroyed. 01740_ Acquired 42 matter. 01745_ Acquired Sub. Monowheel. 01815_ Sneak attack on SS-8DF(R). 01817_ SS-8DF(R) destroyed. 01819_ Acquired 20 matter. 87-SIX(R) emerges from concealment. 01913_ Sensor Array destroyed. 01935_ 09-RKD(R) destroyed. 01949_ Acquired 15 matter. Map ----- +----------------------------------------------------+ | ?????????????????????????????????????????????????? | | ?????????????????????????????????????????????????? | | ?????????????????????????????????????????????????? | | ?????????????????????????????????????????????????? | | ?????????????????????????????????????????????????? | | ?????????????????????????????????????????????????? | | ?????????????????????????????????????????????????? | | ?????????????????????????????????????????????????? | | ?????????????????????????????????????????????????? | | ?????????????????????????????????????????????????? | | ?????????????????????????????????????????????????? | | ?????????????????????????????????????????????????? | | ?????????????????????????????????????????????????? | | ?????????????????????????????????????????????????? | | ?????????????????????????????????????????????????? | | ?????????????????????????????????????????????????? | | ?????????????????????????????????????????????????? | | ?????????????????????????????????????????????????? | | ?????????????????????????????????????????????????? | | ?????????????????????????????????????????????????? | | ?????????????????#####???????????????????????????? | | ????????????????## ##??????????????????????????? | | ?????????????#### "########???????????????????? | | ????????????## ""## "####????????????????? | | ???????????## """RR "" #????????????????? | | ???? @& #????????????????? | | ???? ##### ## ##????????????????? | | ???? ##???##### #????????????????? | | ????? ## ######???#" ##????????????????? | | ????????# ## ##?## "#????????????????? | | ????????# ### """#????????????????? | | ????????# """#????????????????? | | ????????# #### ## """#???????????????? | | ????????# ????##?# # # "" #???????????????? | | ????????# ????????# ### "##???????????????? | | ????????#?????????# ## #?#####????????????????? | | ??????????????????# #?## ##????????####???###???? | | ??????????????????## ?###* #????##### ##?## ##### | | ???????????????????#?## =%!###### ## ### | | ????????????????????## &## ## | | ???????????????????## ### ##### | | ?????????? ?????# ###& ##??## | | ???????? ## &%& ##???# | | ???????? &! ##????# | | ???????? ##### ## #?###### | | ???????? #### #####???#### ### # # | | ??????????????## ##?????????## ## | | ???????????????## ## #????????### ## | | ????????????????# ?# ????????# %# # | | ????????????????# ? ???????#### ####### ### | +----------------------------------------------------+ Best States ------------- Heat Dissipation 25 Energy Generation 10 Energy Capacity 250 Matter Stores 300 Matter Capacity 300 Sight Range 16 Robot Scan Range 14 Terrain Scan Density 10 Armor Coverage 100 Evasion (%) 55 Recoil Reduction 1 Item Schematics ----------------- None Robot Schematics ------------------ None Fabricated ------------ Nothing Alien Tech Used ----------------- None Achievements -------------- None Challenges ------------ None Game ------ Seed CompositeSuspensionNullifier Manual? 0 Play Time 00:11:09 Cumulative 76.3 hours Start 2024.08.28 @ 19:04:49 End 2024.08.28 @ 19:39:55 Sessions 1 Manual Loads 0 Difficulty Rogue Special Mode None Game No. 126 Rogue 122 Adventurer 4 Explorer 0 Win Type - Total 0 Types 0/0/0/0/0/0/0/0/0 Lore% 35 Gallery% 46 Achievement% 35 Wizard Run 0 Options --------- Layout 2 ASCII 0 Keyboard 0 Movement Mouse Keybinds 0 Fullscreen 2 Font 24/Smallcaps Map View 50x44 Zoom Use 0% Tactical HUD 1 Map Filters NONE Filters NONE Steam 1 RUN: 58c79c7c-6b16-46ba-bed3-5845c3bcb21c